fUSD/lending_fUSD_20240104
["ID","MTS","AMOUNT","RATE_DAILY","PERIOD"]
[310147618,1704383511809,-779.16,0.00034794,2]
[310147619,1704383511819,-151.77777,0.00034798,2]
[310147620,1704383511829,-171.50745885,0.000348,7]
[310147621,1704383511840,-400.0,0.0003487,2]
[310147622,1704383511852,-2027.16302349,0.00034876,5]
[310147623,1704383511863,-5000.0,0.00034884,4]
[310147624,1704383511873,-154.56836738,0.0003489,7]
[310147625,1704383511883,-151.77777,0.00034898,2]
[310147626,1704383511893,-8543.32964981,0.000349,2]
[310147627,1704383511903,-43696.67010755,0.000349,5]
[310147628,1704383511914,-271.0,0.000349,24]
[310147629,1704383511923,-506.134571,0.000349,2]
[310147630,1704383511933,-9904.61346948,0.000349,2]
[310147631,1704383511943,-9904.61346932,0.000349,2]
[310147632,1704383511954,-201.50018541,0.000349,2]
[310147633,1704383511964,-201.50018536,0.000349,2]
[310147634,1704383511974,-2458.90235563,0.000349,2]
[310147635,1704383511984,-2458.90235544,0.000349,2]
[310147636,1704383511995,-2458.90235544,0.000349,2]
[310147637,1704383512005,-2458.90235544,0.000349,2]
[310147638,1704383512015,-2458.90235544,0.000349,2]
[310147639,1704383512024,-2458.90235544,0.000349,2]
[310147640,1704383512034,-2458.90235544,0.000349,2]
[310147641,1704383512045,-2458.90235544,0.000349,2]
[310147642,1704383512055,-2458.90235544,0.000349,2]
[310147643,1704383512066,-2458.90235544,0.000349,2]
[310147644,1704383512075,-2458.90235544,0.000349,2]
[310147645,1704383512085,-2458.90235544,0.000349,2]
[310147646,1704383512094,-2458.90235544,0.000349,2]
[310147647,1704383512105,-875.04168843,0.000349,24]
[310147648,1704383512115,-2458.90235544,0.000349,2]
[310147649,1704383512124,-2458.90235544,0.000349,2]
[310147650,1704383512134,-2458.90235544,0.000349,2]
[310147651,1704383512144,-2458.90235544,0.000349,2]
[310147652,1704383512153,-2458.90235544,0.000349,2]
[310147653,1704383512164,-2458.90235544,0.000349,2]
[310147654,1704383512174,-2458.90235544,0.000349,2]
[310147655,1704383512184,-162.46684796,0.0003493,30]
[310147656,1704383512193,-1369.309978,0.00034931,2]
[310147657,1704383512203,-1199.057187,0.00034931,2]
[310147658,1704383512213,-3790.773778,0.00034931,2]
[310147659,1704383512223,-1356.682725,0.00034931,2]
[310147660,1704383512233,-1695.853686,0.00034931,2]
[310147661,1704383512243,-2713.365449,0.00034931,2]
[310147662,1704383512253,-8140.096347,0.00034931,2]
[310147663,1704383512263,-879.359419,0.00034931,2]
[310147664,1704383512272,-207.0,0.0003496,2]
[310147665,1704383512283,-786.16,0.00034989,2]
[310147666,1704383512293,-1490.0,0.0003499,8]
[310147667,1704383512302,-9913.08173661,0.0003499,5]
[310147668,1704383512312,-303.55554,0.00034998,2]
[310147669,1704383512321,-100000.0,0.00035,5]
[310147670,1704383512331,-2500.0,0.00035,2]
[310147671,1704383512340,-1255.60670788,0.00035,4]
[310147672,1704383512350,-287.6531724,0.00035,2]
[310147673,1704383512360,-882.72205867,0.00035,4]
[310147674,1704383512369,-155.0,0.00035,4]
[310147675,1704383512379,-446.78845482,0.00035,4]
[310147676,1704383512389,-155.0,0.00035,4]
[310147677,1704383512401,-15685.4782942,0.00035,7]
[310147678,1704383512412,-1000.0,0.00035,6]
[310147679,1704383512422,-150.0,0.00035,7]
[310147680,1704383512431,-30000.0,0.00035,5]
[310147681,1704383512440,-155.0,0.00035,2]
[310147682,1704383512450,-132115.3542367,0.00035,4]
[310147683,1704383512459,-5816.0655413,0.00035,2]
[310147684,1704383512469,-2000.0,0.00035,2]
[310147685,1704383512479,-300.0,0.00035,5]
[310147686,1704383512488,-15770.9336683,0.00035,2]
[310147687,1704383512498,-21276.0,0.00035,2]
[310147688,1704383512507,-500.0,0.00035,3]
[310147689,1704383512517,-3000.0,0.00035,2]
[310147690,1704383512527,-1652.90029526,0.00035,2]
[310147691,1704383512537,-1652.90029526,0.00035,2]
[310147692,1704383512546,-20220.0,0.00035,99]
[310147693,1704383512556,-10038.18251718,0.00035,4]
[310147694,1704383512566,-500.0,0.00035,10]
[310147695,1704383512575,-1336.23,0.00035004,2]
[310147696,1704383512585,-3525.84,0.00035004,2]
[310147697,1704383512595,-6019.26,0.00035004,2]
[310147698,1704383512606,-3397.48,0.00035004,2]
[310147699,1704383512616,-1947.5,0.00035004,2]
[310147700,1704383512627,-1682.52,0.00035004,2]
[310147701,1704383512637,-1189.91,0.00035004,2]
[310147702,1704383512647,-4784.68,0.00035004,2]
[310147703,1704383512657,-934.89,0.00035004,2]
[310147704,1704383512669,-985.65,0.00035004,2]
[310147705,1704383512679,-1403.95,0.00035004,2]
[310147706,1704383512689,-853.25,0.00035004,2]
[310147707,1704383512698,-1981.92,0.00035004,2]
[310147708,1704383512708,-753.63,0.00035004,2]
[310147709,1704383512717,-1272.31,0.00035004,2]
[310147710,1704383512728,-4520.67,0.00035004,2]
[310147711,1704383512737,-2090.34,0.00035004,2]
[310147712,1704383512747,-500.0,0.00035004,2]
[310147713,1704383512757,-500.0,0.00035004,2]
[310147714,1704383512766,-1472.7,0.00035004,2]
[310147715,1704383512775,-631.14,0.00035004,2]
[310147716,1704383512785,-3000.0,0.0003501,2]
[310147717,1704383512794,-3000.0,0.0003502,2]
[310147718,1704383512804,-3000.0,0.0003503,2]
[310147719,1704383512813,-5027.939068,0.0003504,2]
[310147720,1704383512823,-267.6,0.0003505,2]
[310147721,1704383512832,-500.0,0.00035059,2]
[310147722,1704383512844,-200.0,0.00035059,2]
[310147723,1704383512854,-150.0,0.00035067,2]
[310147724,1704383512864,-1711.637473,0.00035068,2]
[310147725,1704383512873,-1498.821484,0.00035068,2]
[310147726,1704383512883,-4738.467223,0.00035068,2]
[310147727,1704383512892,-1695.853406,0.00035068,2]
[310147728,1704383512901,-500.0,0.00035068,2]
[310147729,1704383512911,-2119.817108,0.00035068,2]
[310147730,1704383512919,-500.0,0.00035068,2]
[310147731,1704383512928,-3391.706811,0.00035068,2]
[310147732,1704383512938,-285.72209697,0.00035068,2]
[310147733,1704383512948,-500.0,0.00035068,2]
[310147734,1704383512957,-500.0,0.00035068,2]
[310147735,1704383512966,-1581.45,0.00035068,2]
[310147736,1704383512976,-592.65,0.00035068,2]
[310147737,1704383512985,-500.0,0.00035068,2]
[310147738,1704383512994,-500.0,0.00035068,2]
[310147739,1704383513003,-500.0,0.00035068,2]
[310147740,1704383513013,-820.54,0.00035068,2]
[310147741,1704383513022,-500.0,0.00035068,2]
[310147742,1704383513031,-10175.120434,0.00035068,2]
[310147743,1704383513040,-500.0,0.00035068,2]
[310147744,1704383513051,-1099.199274,0.00035068,2]
[310147745,1704383513061,-553.43,0.00035068,2]
[310147746,1704383513071,-500.0,0.00035068,2]
[310147747,1704383513081,-1835.21,0.00035068,2]
[310147748,1704383513091,-500.0,0.00035068,2]
[310147749,1704383513100,-532.57,0.00035068,2]
[310147750,1704383513109,-558.15,0.00035068,2]
[310147751,1704383513119,-500.0,0.00035068,2]
[310147752,1704383513128,-916.08,0.00035068,2]
[310147753,1704383513137,-500.0,0.00035068,2]
[310147754,1704383513146,-500.0,0.00035068,2]
[310147755,1704383513156,-1068.71,0.00035068,2]
[310147756,1704383513165,-1645.35,0.00035068,2]
[310147757,1704383513175,-500.0,0.00035068,2]
[310147758,1704383513185,-819.52,0.00035068,2]
[310147759,1704383513195,-1289.9,0.00035068,2]
[310147760,1704383513205,-701.85,0.00035068,2]
[310147761,1704383513215,-592.8,0.00035068,2]
[310147762,1704383513224,-1192.37,0.00035068,2]
[310147763,1704383513234,-515.52,0.00035068,2]
[310147764,1704383513243,-500.0,0.00035068,2]
[310147765,1704383513252,-500.0,0.00035068,2]
[310147766,1704383513262,-1365.23,0.00035068,2]
[310147767,1704383513271,-500.0,0.00035068,2]
[310147768,1704383513280,-610.84705244,0.00035068,2]
[310147769,1704383513290,-500.0,0.00035068,2]
[310147770,1704383513299,-500.0,0.00035068,2]
[310147771,1704383513308,-500.0,0.00035068,2]
[310147772,1704383513318,-507.42,0.00035068,2]
[310147773,1704383513327,-599.75,0.00035068,2]
[310147774,1704383513336,-592.27,0.00035068,2]
[310147775,1704383513346,-500.0,0.00035068,2]
[310147776,1704383513355,-664.2,0.00035068,2]
[310147777,1704383513364,-500.0,0.00035068,2]
[310147778,1704383513374,-1043.25,0.00035068,2]
[310147779,1704383513383,-626.37,0.00035068,2]
[310147780,1704383513393,-500.0,0.00035068,2]
[310147781,1704383513403,-500.0,0.00035068,2]
[310147782,1704383513412,-500.0,0.00035068,2]
[310147783,1704383513422,-917.78,0.00035068,2]
[310147784,1704383513431,-977.44,0.00035068,2]
[310147785,1704383513441,-500.0,0.00035068,2]
[310147786,1704383513451,-500.0,0.00035068,2]
[310147787,1704383513460,-500.0,0.00035068,2]
[310147788,1704383513470,-535.3,0.00035068,2]
[310147789,1704383513480,-500.0,0.00035068,2]
[310147790,1704383513489,-500.0,0.00035068,2]
[310147791,1704383513499,-573.47,0.00035068,2]
[310147792,1704383513508,-679.66,0.00035068,2]
[310147793,1704383513518,-868.42,0.00035068,2]
[310147794,1704383513527,-500.0,0.00035068,2]
[310147795,1704383513536,-500.0,0.00035068,2]
[310147796,1704383513546,-500.0,0.00035068,2]
[310147797,1704383513555,-500.0,0.00035068,2]
[310147798,1704383513565,-941.55,0.00035068,2]
[310147799,1704383513574,-1452.62,0.00035068,2]
[310147800,1704383513584,-540.38,0.00035068,2]
[310147801,1704383513594,-500.0,0.00035068,2]
[310147802,1704383513603,-500.0,0.00035068,2]
[310147803,1704383513612,-1669.57,0.00035068,2]
[310147804,1704383513621,-1419.74,0.00035068,2]
[310147805,1704383513631,-500.0,0.00035068,2]
[310147806,1704383513641,-1040.63,0.00035068,2]
[310147807,1704383513650,-1057.35,0.00035068,2]
[310147808,1704383513660,-1409.78,0.00035068,2]
[310147809,1704383513670,-786.88,0.00035068,2]
[310147810,1704383513679,-1086.26,0.00035068,2]
[310147811,1704383513688,-500.0,0.00035068,2]
[310147812,1704383513698,-500.0,0.00035068,2]
[310147813,1704383513708,-532.76,0.00035068,2]
[310147814,1704383513717,-500.0,0.00035068,2]
[310147815,1704383513727,-728.75,0.00035068,2]
[310147816,1704383513737,-500.0,0.00035068,2]
[310147817,1704383513746,-500.0,0.00035068,2]
[310147818,1704383513757,-1028.01,0.00035068,2]
[310147819,1704383513767,-500.0,0.00035068,2]
[310147820,1704383513777,-803.51,0.00035068,2]
[310147821,1704383513787,-500.0,0.00035068,2]
[310147822,1704383513798,-1123.92,0.00035068,2]
[310147823,1704383513808,-517.51,0.00035068,2]
[310147824,1704383513817,-260.57802106,0.00035068,2]
[310147825,1704383513827,-500.0,0.00035068,2]
[310147826,1704383513836,-500.0,0.00035068,2]
[310147827,1704383513850,-720.98,0.00035068,2]
[310147828,1704383513860,-1451.87,0.00035068,2]
[310147829,1704383513870,-500.0,0.00035068,2]
[310147830,1704383513879,-678.82,0.00035068,2]
[310147831,1704383513889,-759.68,0.00035068,2]
[310147832,1704383513899,-3071.54,0.00035068,2]
[310147833,1704383513910,-615.97,0.00035068,2]
[310147834,1704383513919,-1363.51,0.00035068,2]
[310147835,1704383513929,-566.19,0.00035068,2]
[310147836,1704383513939,-870.68,0.00035068,2]
[310147837,1704383513949,-500.0,0.00035068,2]
[310147838,1704383513958,-500.0,0.00035068,2]
[310147839,1704383513968,-535.58,0.00035068,2]
[310147840,1704383513978,-1457.23,0.00035068,2]
[310147841,1704383513988,-902.65,0.00035068,2]
[310147842,1704383513997,-500.0,0.00035068,2]
[310147843,1704383514007,-900.66,0.00035068,2]
[310147844,1704383514016,-1222.61,0.00035068,2]
[310147845,1704383514026,-1042.2,0.00035068,2]
[310147846,1704383514035,-500.0,0.00035068,2]
[310147847,1704383514046,-500.0,0.00035068,2]
[310147848,1704383514057,-500.0,0.00035068,2]
[310147849,1704383514066,-728.74,0.00035068,2]
[310147850,1704383514077,-627.53,0.00035068,2]
[310147851,1704383514086,-746.5,0.00035068,2]
[310147852,1704383514096,-847.61,0.00035068,2]
[310147853,1704383514105,-500.0,0.00035068,2]
[310147854,1704383514115,-1537.38,0.00035068,2]
[310147855,1704383514124,-1357.77,0.00035068,2]
[310147856,1704383514133,-623.38,0.00035068,2]
[310147857,1704383514143,-1147.35,0.00035068,2]
[310147858,1704383514153,-1349.09,0.00035068,2]
[310147859,1704383514163,-1079.84,0.00035068,2]
[310147860,1704383514172,-500.0,0.00035068,2]
[310147861,1704383514182,-1513.63,0.00035068,2]
[310147862,1704383514192,-500.0,0.00035068,2]
[310147863,1704383514214,-500.0,0.00035068,2]
[310147864,1704383514224,-500.0,0.00035068,2]
[310147865,1704383514506,-511.54,0.00035068,2]
[310147866,1704383514516,-500.0,0.00035068,2]
[310147867,1704383514526,-1462.66,0.00035068,2]
[310147868,1704383514535,-500.0,0.00035068,2]
[310147869,1704383514544,-1172.19,0.00035068,2]
[310147870,1704383514554,-1990.12,0.00035068,2]
[310147871,1704383514563,-603.95,0.00035068,2]
[310147872,1704383514573,-1219.74,0.00035068,2]
[310147873,1704383514583,-500.0,0.00035068,2]
[310147874,1704383514592,-500.0,0.00035068,2]
[310147875,1704383514602,-500.0,0.00035068,2]
[310147876,1704383514612,-500.0,0.00035068,2]
[310147877,1704383514622,-1670.1,0.00035068,2]
[310147878,1704383514631,-912.27,0.00035068,2]
[310147879,1704383514641,-500.0,0.00035068,2]
[310147880,1704383514651,-500.0,0.00035068,2]
[310147881,1704383514662,-500.0,0.00035068,2]
[310147882,1704383514671,-1474.82,0.00035068,2]
[310147883,1704383514681,-880.31,0.00035068,2]
[310147884,1704383514691,-500.0,0.00035068,2]
[310147885,1704383514701,-958.09,0.00035068,2]
[310147886,1704383514712,-1366.5,0.00035068,2]
[310147887,1704383514722,-500.0,0.00035068,2]
[310147888,1704383514731,-574.97,0.00035068,2]
[310147889,1704383514741,-937.71,0.00035068,2]
[310147890,1704383514751,-500.0,0.00035068,2]
[310147891,1704383514760,-633.81,0.00035068,2]
[310147892,1704383514770,-937.76,0.00035068,2]
[310147893,1704383514779,-702.39,0.00035068,2]
[310147894,1704383514788,-325.29056991,0.00035068,2]
[310147895,1704383514798,-865.04,0.00035068,2]
[310147896,1704383514807,-636.93,0.00035068,2]
[310147897,1704383514817,-819.06,0.00035068,2]
[310147898,1704383514827,-500.0,0.00035068,2]
[310147899,1704383514837,-500.0,0.00035068,2]
[310147900,1704383514850,-1417.4,0.00035068,2]
[310147901,1704383514859,-500.0,0.00035068,2]
[310147902,1704383514870,-2014.53,0.00035068,2]
[310147903,1704383514879,-542.64,0.00035068,2]
[310147904,1704383514889,-876.9,0.00035068,2]
[310147905,1704383514899,-500.0,0.00035068,2]
[310147906,1704383514908,-500.0,0.00035068,2]
[310147907,1704383514919,-373.68,0.00035068,2]
[310147908,1704383514928,-572.05,0.00035068,2]
[310147909,1704383514938,-1000.0,0.00035068,2]
[310147910,1704383514948,-500.0,0.00035068,2]
[310147911,1704383514958,-1205.37,0.00035068,2]
[310147912,1704383514967,-500.0,0.00035068,2]
[310147913,1704383514977,-500.0,0.00035068,2]
[310147914,1704383514987,-674.61,0.00035068,2]
[310147915,1704383514997,-1957.4,0.00035068,2]
[310147916,1704383515006,-500.0,0.00035068,2]
[310147917,1704383515016,-695.0,0.00035068,2]
[310147918,1704383515026,-500.0,0.00035068,2]
[310147919,1704383515035,-500.0,0.00035068,2]
[310147920,1704383515046,-803.55,0.00035068,2]
[310147921,1704383515056,-500.0,0.00035068,2]
[310147922,1704383515066,-882.03,0.00035068,2]
[310147923,1704383515075,-815.47,0.00035068,2]
[310147924,1704383515085,-500.0,0.00035068,2]
[310147925,1704383515094,-304.30171914,0.00035068,2]
[310147926,1704383515104,-1914.74,0.00035068,2]
[310147927,1704383515114,-500.0,0.00035068,2]
[310147928,1704383515123,-574.34,0.00035068,2]
[310147929,1704383515134,-158.16,0.00035068,2]
[310147930,1704383515144,-500.0,0.00035068,2]
[310147931,1704383515154,-944.72,0.00035068,2]
[310147932,1704383515164,-500.0,0.00035068,2]
[310147933,1704383515174,-982.79,0.00035068,2]
[310147934,1704383515183,-500.0,0.00035068,2]
[310147935,1704383515194,-500.0,0.00035068,2]
[310147936,1704383515204,-804.81,0.00035068,2]
[310147937,1704383515214,-500.0,0.00035068,2]
[310147938,1704383515224,-1565.08,0.00035068,2]
[310147939,1704383515233,-500.0,0.00035068,2]
[310147940,1704383515243,-959.87,0.00035068,2]
[310147941,1704383515253,-700.63,0.00035068,2]
[310147942,1704383515263,-500.0,0.00035068,2]
[310147943,1704383515273,-885.49,0.00035068,2]
[310147944,1704383515283,-744.98,0.00035068,2]
[310147945,1704383515293,-500.0,0.00035068,2]
[310147946,1704383515303,-500.0,0.00035068,2]
[310147947,1704383515312,-1410.46,0.00035068,2]
[310147948,1704383515322,-500.0,0.00035068,2]
[310147949,1704383515331,-500.0,0.00035068,2]
[310147950,1704383515342,-500.0,0.00035068,2]
[310147951,1704383515351,-500.0,0.00035068,2]
[310147952,1704383515360,-957.51,0.00035068,2]
[310147953,1704383515370,-699.39,0.00035068,2]
[310147954,1704383515379,-500.0,0.00035068,2]
[310147955,1704383515389,-500.0,0.00035068,2]
[310147956,1704383515398,-1991.4,0.00035068,2]
[310147957,1704383515408,-500.0,0.00035068,2]
[310147958,1704383515419,-25000.0,0.00035068,3]
[310147959,1704383515428,-500.0,0.00035068,2]
[310147960,1704383515439,-500.0,0.00035068,2]
[310147961,1704383515449,-500.0,0.00035068,2]
[310147962,1704383515459,-2780.73,0.00035068,2]
[310147963,1704383515469,-500.0,0.00035068,2]
[310147964,1704383515479,-564.47,0.00035068,2]
[310147965,1704383515489,-500.0,0.00035068,2]
[310147966,1704383515499,-1394.86,0.00035068,2]
[310147967,1704383515509,-1775.83,0.00035068,2]
[310147968,1704383515518,-500.0,0.00035068,2]
[310147969,1704383515528,-500.0,0.00035068,2]
[310147970,1704383515538,-652.78,0.00035068,2]
[310147971,1704383515548,-500.0,0.00035068,2]
[310147972,1704383515557,-619.2,0.00035068,2]
[310147973,1704383515567,-1405.72,0.00035068,2]
[310147974,1704383515576,-500.0,0.00035068,2]
[310147975,1704383515587,-597.63,0.00035068,2]
[310147976,1704383515597,-1124.88,0.00035068,2]
[310147977,1704383515606,-500.0,0.00035068,2]
[310147978,1704383515616,-1115.87,0.00035068,2]
[310147979,1704383515626,-1054.91,0.00035068,2]
[310147980,1704383515635,-524.05,0.00035068,2]
[310147981,1704383515645,-500.0,0.00035068,2]
[310147982,1704383515655,-559.91,0.00035068,2]
[310147983,1704383515665,-500.0,0.00035068,2]
[310147984,1704383515675,-564.33,0.00035068,2]
[310147985,1704383515686,-950.11,0.00035068,2]
[310147986,1704383515695,-685.63,0.00035068,2]
[310147987,1704383515705,-1086.48,0.00035068,2]
[310147988,1704383515715,-500.0,0.00035068,2]
[310147989,1704383515725,-500.0,0.00035068,2]
[310147990,1704383515734,-944.61,0.00035068,2]
[310147991,1704383515744,-1757.32,0.00035068,2]
[310147992,1704383515754,-2621.71,0.00035068,2]
[310147993,1704383515763,-500.0,0.00035068,2]
[310147994,1704383515773,-1401.22,0.00035068,2]
[310147995,1704383515783,-500.0,0.00035068,2]
[310147996,1704383515792,-313.45,0.00035068,2]
[310147997,1704383515802,-500.0,0.00035068,2]
[310147998,1704383515812,-1732.27,0.00035068,2]
[310147999,1704383515822,-639.42,0.00035068,2]
[310148000,1704383515831,-1256.69,0.00035068,2]
[310148001,1704383515842,-1094.07,0.00035068,2]
[310148002,1704383515853,-500.0,0.00035068,2]
[310148003,1704383515862,-500.0,0.00035068,2]
[310148004,1704383515872,-1570.56,0.00035068,2]
[310148005,1704383515881,-739.39,0.00035068,2]
[310148006,1704383515891,-500.0,0.00035068,2]
[310148007,1704383515901,-529.45,0.00035068,2]
[310148008,1704383515912,-1294.14,0.00035068,2]
[310148009,1704383515922,-1059.98,0.00035068,2]
[310148010,1704383515932,-574.31,0.00035068,2]
[310148011,1704383515941,-418.65,0.00035068,2]
[310148012,1704383515951,-1661.09,0.00035068,2]
[310148013,1704383515962,-500.0,0.00035068,2]
[310148014,1704383515972,-582.97,0.00035068,2]
[310148015,1704383515982,-1488.44,0.00035068,2]
[310148016,1704383515991,-576.77,0.00035068,2]
[310148017,1704383516000,-500.0,0.00035068,2]
[310148018,1704383516010,-879.94,0.00035068,2]
[310148019,1704383516020,-500.0,0.00035068,2]
[310148020,1704383516030,-539.04,0.00035068,2]
[310148021,1704383516040,-1530.35,0.00035068,2]
[310148022,1704383516053,-1484.45,0.00035068,2]
[310148023,1704383516063,-500.0,0.00035068,2]
[310148024,1704383516073,-512.24,0.00035068,2]
[310148025,1704383516082,-1403.56,0.00035068,2]
[310148026,1704383516092,-545.95,0.00035068,2]
[310148027,1704383516102,-611.8,0.00035068,2]
[310148028,1704383516111,-601.29,0.00035068,2]
[310148029,1704383516121,-630.38,0.00035068,2]
[310148030,1704383516131,-2049.38,0.00035068,2]
[310148031,1704383516141,-1841.82,0.00035068,2]
[310148032,1704383516150,-500.0,0.00035068,2]
[310148033,1704383516160,-500.0,0.00035068,2]
[310148034,1704383516169,-1046.26,0.00035068,2]
[310148035,1704383516179,-951.22,0.00035068,2]
[310148036,1704383516189,-1497.34,0.00035068,2]
[310148037,1704383516199,-735.25,0.00035068,2]
[310148038,1704383516209,-527.14,0.00035068,2]
[310148039,1704383516218,-1733.0,0.00035068,2]
[310148040,1704383516228,-643.52,0.00035068,2]
[310148041,1704383516237,-822.39,0.00035068,2]
[310148042,1704383516247,-500.0,0.00035068,2]
[310148043,1704383516257,-500.0,0.00035068,2]
[310148044,1704383516267,-2670.57,0.00035068,2]
[310148045,1704383516276,-500.0,0.00035068,2]
[310148046,1704383516286,-500.0,0.00035068,2]
[310148047,1704383516295,-3284.99,0.00035068,2]
[310148048,1704383516305,-1166.26,0.00035068,2]
[310148049,1704383516314,-971.98,0.00035068,2]
[310148050,1704383516323,-500.0,0.00035068,2]
[310148051,1704383516333,-1694.73,0.00035068,2]
[310148052,1704383516342,-685.61,0.00035068,2]
[310148053,1704383516352,-500.0,0.00035068,2]
[310148054,1704383516362,-2075.81,0.00035068,2]
[310148055,1704383516373,-1125.46,0.00035068,2]
[310148056,1704383516383,-526.4,0.00035068,2]
[310148057,1704383516392,-1396.04,0.00035068,2]
[310148058,1704383516402,-500.0,0.00035068,2]
[310148059,1704383516412,-1060.35,0.00035068,2]
[310148060,1704383516421,-540.44,0.00035068,2]
[310148061,1704383516431,-3215.96,0.00035068,2]
[310148062,1704383516440,-500.0,0.00035068,2]
[310148063,1704383516450,-781.26,0.00035068,2]
[310148064,1704383516460,-1237.67,0.00035068,2]
[310148065,1704383516471,-500.0,0.00035068,2]
[310148066,1704383516481,-558.12,0.00035068,2]
[310148067,1704383516490,-525.09,0.00035068,2]
[310148068,1704383516500,-1191.58,0.00035068,2]
[310148069,1704383516510,-1747.39,0.00035068,2]
[310148070,1704383516520,-1747.57,0.00035068,2]
[310148071,1704383516530,-500.0,0.00035068,2]
[310148072,1704383516540,-4274.46,0.00035068,2]
[310148073,1704383516549,-2793.34,0.00035068,2]
[310148074,1704383516559,-181.56,0.00035068,2]
[310148075,1704383516569,-973.72,0.00035068,2]
[310148076,1704383516578,-1118.87,0.00035068,2]
[310148077,1704383516588,-684.1,0.00035068,2]
[310148078,1704383516598,-500.0,0.00035068,2]
[310148079,1704383516608,-500.0,0.00035068,2]
[310148080,1704383516618,-521.83,0.00035068,2]
[310148081,1704383516628,-500.0,0.00035068,2]
[310148082,1704383516638,-676.82,0.00035068,2]
[310148083,1704383516648,-500.0,0.00035068,2]
[310148084,1704383516657,-2388.72,0.00035068,2]
[310148085,1704383516668,-1361.8,0.00035068,2]
[310148086,1704383516678,-500.0,0.00035068,2]
[310148087,1704383516688,-500.0,0.00035068,2]
[310148088,1704383516697,-998.02,0.00035068,2]
[310148089,1704383516707,-500.0,0.00035068,2]
[310148090,1704383516717,-500.0,0.00035068,2]
[310148091,1704383516727,-699.11,0.00035068,2]
[310148092,1704383516736,-522.55,0.00035068,2]
[310148093,1704383516746,-841.57,0.00035068,2]
[310148094,1704383516755,-2977.6,0.00035068,2]
[310148095,1704383516765,-658.31,0.00035068,2]
[310148096,1704383516775,-612.09,0.00035068,2]
[310148097,1704383516785,-1411.68,0.00035068,2]
[310148098,1704383516794,-998.22,0.00035068,2]
[310148099,1704383516804,-1262.99,0.00035068,2]
[310148100,1704383516814,-4333.35,0.00035068,2]
[310148101,1704383516823,-500.0,0.00035068,2]
[310148102,1704383516833,-550.75,0.00035068,2]
[310148103,1704383516844,-706.18,0.00035068,2]
[310148104,1704383516854,-667.37,0.00035068,2]
[310148105,1704383516864,-500.0,0.00035068,2]
[310148106,1704383516874,-3014.21,0.00035068,2]
[310148107,1704383516884,-1018.2,0.00035068,2]
[310148108,1704383516893,-693.16,0.00035068,2]
[310148109,1704383516903,-1362.23,0.00035068,2]
[310148110,1704383516915,-2995.33,0.00035068,2]
[310148111,1704383516924,-500.0,0.00035068,2]
[310148112,1704383517012,-597.48,0.00035068,2]
[310148113,1704383517023,-1324.64,0.00035068,2]
[310148114,1704383517033,-816.81,0.00035068,2]
[310148115,1704383517044,-500.0,0.00035068,2]
[310148116,1704383517055,-599.52,0.00035068,2]
[310148117,1704383517064,-500.0,0.00035068,2]